fUSD/lending_fUSD_20240211
["ID","MTS","AMOUNT","RATE_DAILY","PERIOD"]
[313746091,1707655861918,-973.3,0.00036164,2]
[313746092,1707655861928,-1054.78,0.00036164,2]
[313746093,1707655861938,-1070.5,0.00036164,2]
[313746094,1707655861948,-708.42,0.00036164,2]
[313746095,1707655861958,-500.0,0.00036164,2]
[313746096,1707655861967,-1456.47,0.00036164,2]
[313746097,1707655861977,-500.0,0.00036164,2]
[313746098,1707655861987,-1278.26,0.00036164,2]
[313746099,1707655861996,-1035.49,0.00036164,2]
[313746100,1707655862006,-1163.3,0.00036164,2]
[313746101,1707655862015,-500.0,0.00036164,2]
[313746102,1707655862025,-500.0,0.00036164,2]
[313746103,1707655862034,-500.0,0.00036164,2]
[313746104,1707655862043,-500.0,0.00036164,2]
[313746105,1707655862053,-1177.67,0.00036164,2]
[313746106,1707655862062,-955.06,0.00036164,2]
[313746107,1707655862072,-500.0,0.00036164,2]
[313746108,1707655862081,-500.0,0.00036164,2]
[313746109,1707655862090,-500.0,0.00036164,2]
[313746110,1707655862100,-500.0,0.00036164,2]
[313746111,1707655862109,-481.55827064,0.00036164,2]
[313746112,1707655862119,-500.0,0.00036164,2]
[313746113,1707655862128,-1535.23,0.00036164,2]
[313746114,1707655862137,-1129.37,0.00036164,2]
[313746115,1707655862147,-510.93429698,0.00036164,2]
[313746116,1707655862156,-500.0,0.00036164,2]
[313746117,1707655862165,-500.0,0.00036164,2]
[313746118,1707655862175,-500.0,0.00036164,2]
[313746119,1707655862184,-649.76454643,0.00036164,2]
[313746120,1707655862195,-1554.94,0.00036164,2]
[313746121,1707655862205,-1410.9,0.00036164,2]
[313746122,1707655862215,-500.0,0.00036164,2]
[313746123,1707655862225,-500.0,0.00036164,2]
[313746124,1707655862234,-500.0,0.00036164,2]
[313746125,1707655862243,-670.47,0.00036164,2]
[313746126,1707655862252,-500.0,0.00036164,2]
[313746127,1707655862262,-500.0,0.00036164,2]
[313746128,1707655862272,-1312.31,0.00036164,2]
[313746129,1707655862282,-500.0,0.00036164,2]
[313746130,1707655862291,-1074.14,0.00036164,2]
[313746131,1707655862300,-500.0,0.00036164,2]
[313746132,1707655862309,-500.0,0.00036164,2]
[313746133,1707655862318,-547.26,0.00036164,2]
[313746134,1707655862328,-449.73605955,0.00036164,2]
[313746135,1707655862340,-500.0,0.00036164,2]
[313746136,1707655862350,-500.0,0.00036164,2]
[313746137,1707655862359,-309.51295187,0.00036164,2]
[313746138,1707655862369,-576.82503974,0.00036164,2]
[313746139,1707655862381,-500.0,0.00036164,2]
[313746140,1707655862390,-500.0,0.00036164,2]
[313746141,1707655862399,-500.0,0.00036164,2]
[313746142,1707655862409,-500.0,0.00036164,2]
[313746143,1707655862419,-2082.44,0.00036164,2]
[313746144,1707655862429,-536.82217218,0.00036164,2]
[313746145,1707655862437,-524.87416605,0.00036164,7]
[313746146,1707655862447,-713.26,0.00036164,2]
[313746147,1707655862456,-500.0,0.00036164,2]
[313746148,1707655862465,-500.0,0.00036164,2]
[313746149,1707655862474,-500.0,0.00036164,2]
[313746150,1707655862484,-500.0,0.00036164,2]
[313746151,1707655862493,-587.68,0.00036164,2]
[313746152,1707655862502,-618.3,0.00036164,2]
[313746153,1707655862511,-500.0,0.00036164,2]
[313746154,1707655862520,-500.0,0.00036164,2]
[313746155,1707655862529,-500.0,0.00036164,2]
[313746156,1707655862538,-500.0,0.00036164,2]
[313746157,1707655862548,-631.0780235,0.00036164,2]
[313746158,1707655862557,-1262.4,0.00036164,2]
[313746159,1707655862567,-500.0,0.00036164,2]
[313746160,1707655862577,-500.0,0.00036164,2]
[313746161,1707655862586,-500.0,0.00036164,2]
[313746162,1707655862597,-500.0,0.00036164,2]
[313746163,1707655862607,-812.45,0.00036164,2]
[313746164,1707655862617,-500.0,0.00036164,2]
[313746165,1707655862626,-723.13,0.00036164,2]
[313746166,1707655862636,-500.0,0.00036164,2]
[313746167,1707655862645,-500.0,0.00036164,2]
[313746168,1707655862655,-500.0,0.00036164,2]
[313746169,1707655862664,-500.0,0.00036164,2]
[313746170,1707655862673,-1031.16,0.00036164,2]
[313746171,1707655862682,-1252.15,0.00036164,2]
[313746172,1707655862692,-500.0,0.00036164,2]
[313746173,1707655862701,-500.0,0.00036164,2]
[313746174,1707655862710,-1174.8,0.00036164,2]
[313746175,1707655862721,-500.0,0.00036164,2]
[313746176,1707655862730,-500.0,0.00036164,2]
[313746177,1707655862741,-1327.81,0.00036164,2]
[313746178,1707655862752,-500.98,0.00036164,2]
[313746179,1707655862762,-513.73,0.00036164,2]
[313746180,1707655862771,-500.0,0.00036164,2]
[313746181,1707655862782,-500.0,0.00036164,2]
[313746182,1707655862792,-500.0,0.00036164,2]
[313746183,1707655862802,-500.0,0.00036164,2]
[313746184,1707655862812,-500.0,0.00036164,2]
[313746185,1707655862821,-9513.05817407,0.00036164,2]
[313746186,1707655862830,-500.0,0.00036164,2]
[313746187,1707655862840,-500.0,0.00036164,2]
[313746188,1707655862863,-1042.21,0.00036164,2]
[313746189,1707655862872,-1459.38,0.00036164,2]
[313746190,1707655862881,-500.0,0.00036164,2]
[313746191,1707655862890,-500.0,0.00036164,2]
[313746192,1707655862901,-500.0,0.00036164,2]
[313746193,1707655862911,-507.05,0.00036164,2]
[313746194,1707655862920,-510.3346675,0.00036164,2]
[313746195,1707655862930,-500.0,0.00036164,2]
[313746196,1707655862940,-506.62380809,0.00036164,2]
[313746197,1707655862949,-500.0,0.00036164,2]
[313746198,1707655862958,-500.0,0.00036164,2]
[313746199,1707655862967,-500.0,0.00036164,2]
[313746200,1707655862977,-638.34,0.00036164,2]
[313746201,1707655862987,-177.74110543,0.00036164,2]
[313746202,1707655862996,-500.0,0.00036164,2]
[313746203,1707655863006,-523.96365923,0.00036164,2]
[313746204,1707655863016,-500.0,0.00036164,2]
[313746205,1707655863025,-500.0,0.00036164,2]
[313746206,1707655863034,-1861.31,0.00036164,2]
[313746207,1707655863043,-1001.36,0.00036164,2]
[313746208,1707655863052,-258.68307278,0.00036164,2]
[313746209,1707655863062,-2145.87,0.00036164,2]
[313746210,1707655863071,-500.0,0.00036164,2]
[313746211,1707655863080,-500.0,0.00036164,2]
[313746212,1707655863090,-500.0,0.00036164,2]
[313746213,1707655863099,-500.0,0.00036164,2]
[313746214,1707655863108,-934.28,0.00036164,2]
[313746215,1707655863118,-531.29754274,0.00036164,2]
[313746216,1707655863128,-500.0,0.00036164,2]
[313746217,1707655863137,-1666.06,0.00036164,2]
[313746218,1707655863147,-544.94608704,0.00036164,2]
[313746219,1707655863156,-1497.23,0.00036164,2]
[313746220,1707655863166,-500.0,0.00036164,2]
[313746221,1707655863176,-500.0,0.00036164,2]
[313746222,1707655863186,-1256.32,0.00036164,2]
[313746223,1707655863197,-613.88,0.00036164,2]
[313746224,1707655863207,-500.0,0.00036164,2]
[313746225,1707655863218,-1474.59,0.00036164,2]
[313746226,1707655863229,-500.0,0.00036164,2]
[313746227,1707655863240,-777.41,0.00036164,2]
[313746228,1707655863252,-500.0,0.00036164,2]
[313746229,1707655863262,-702.15,0.00036164,2]
[313746230,1707655863271,-500.0,0.00036164,2]
[313746231,1707655863281,-770.44,0.00036164,2]
[313746232,1707655863291,-2223.95,0.00036164,2]
[313746233,1707655863300,-500.0,0.00036164,2]
[313746234,1707655863309,-500.0,0.00036164,2]
[313746235,1707655863319,-914.93,0.00036164,2]
[313746236,1707655863329,-1171.46,0.00036164,2]
[313746237,1707655863545,-500.0,0.00036164,2]
[313746238,1707655863557,-500.0,0.00036164,2]
[313746239,1707655863569,-500.0,0.00036164,2]
[313746240,1707655863579,-500.0,0.00036164,2]
[313746241,1707655863590,-500.0,0.00036164,2]
[313746242,1707655863600,-500.0,0.00036164,2]
[313746243,1707655863611,-500.0,0.00036164,2]
[313746244,1707655863620,-770.73,0.00036164,2]
[313746245,1707655863629,-1968.34,0.00036164,2]
[313746246,1707655863640,-1108.41,0.00036164,2]
[313746247,1707655863651,-500.0,0.00036164,2]
[313746248,1707655863662,-519.4498628,0.00036164,2]
[313746249,1707655863673,-500.0,0.00036164,2]
[313746250,1707655863685,-1437.64,0.00036164,2]
[313746251,1707655863696,-500.0,0.00036164,2]
[313746252,1707655863705,-500.0,0.00036164,2]
[313746253,1707655863715,-500.0,0.00036164,2]
[313746254,1707655863724,-532.71,0.00036164,2]
[313746255,1707655863733,-519.44,0.00036164,2]
[313746256,1707655863743,-500.0,0.00036164,2]
[313746257,1707655863752,-1570.05,0.00036164,2]
[313746258,1707655863761,-555.11,0.00036164,2]
[313746259,1707655863770,-500.0,0.00036164,2]
[313746260,1707655863781,-500.0,0.00036164,2]
[313746261,1707655863792,-500.0,0.00036164,2]
[313746262,1707655863801,-500.0,0.00036164,2]
[313746263,1707655863811,-500.0,0.00036164,2]
[313746264,1707655863822,-1083.91,0.00036164,2]
[313746265,1707655863832,-606.59,0.00036164,2]
[313746266,1707655863841,-500.0,0.00036164,2]
[313746267,1707655863852,-429.87165537,0.00036164,2]
[313746268,1707655863863,-500.0,0.00036164,2]
[313746269,1707655863872,-500.0,0.00036164,2]
[313746270,1707655863882,-500.0,0.00036164,2]
[313746271,1707655863893,-500.0,0.00036164,2]
[313746272,1707655863902,-500.0,0.00036164,2]
[313746273,1707655863911,-500.0,0.00036164,2]
[313746274,1707655863920,-500.0,0.00036164,2]
[313746275,1707655863929,-500.0,0.00036164,2]
[313746276,1707655863939,-500.0,0.00036164,2]
[313746277,1707655863948,-500.0,0.00036164,2]
[313746278,1707655863957,-500.0,0.00036164,2]
[313746279,1707655863967,-500.0,0.00036164,2]
[313746280,1707655863975,-990.85,0.00036164,2]
[313746281,1707655863984,-500.0,0.00036164,2]
[313746282,1707655863994,-514.81,0.00036164,2]
[313746283,1707655864003,-500.0,0.00036164,2]
[313746284,1707655864012,-1293.02,0.00036164,2]
[313746285,1707655864021,-500.0,0.00036164,2]
[313746286,1707655864030,-500.0,0.00036164,2]
[313746287,1707655864039,-500.0,0.00036164,2]
[313746288,1707655864048,-500.0,0.00036164,2]
[313746289,1707655864057,-500.0,0.00036164,2]
[313746290,1707655864067,-500.0,0.00036164,2]
[313746291,1707655864076,-500.0,0.00036164,2]
[313746292,1707655864085,-500.0,0.00036164,2]
[313746293,1707655864094,-500.0,0.00036164,2]
[313746294,1707655864103,-642.77449192,0.00036164,2]
[313746295,1707655864113,-500.0,0.00036164,2]
[313746296,1707655864122,-532.17,0.00036164,2]
[313746297,1707655864132,-536.67,0.00036164,2]
[313746298,1707655864141,-671.89,0.00036164,2]
[313746299,1707655864151,-500.0,0.00036164,2]
[313746300,1707655864160,-563.43,0.00036164,2]
[313746301,1707655864169,-500.0,0.00036164,2]
[313746302,1707655864178,-500.0,0.00036164,2]
[313746303,1707655864187,-500.0,0.00036164,2]
[313746304,1707655864196,-536.94,0.00036164,2]
[313746305,1707655864205,-509.96335526,0.00036164,2]
[313746306,1707655864215,-500.0,0.00036164,2]
[313746307,1707655864224,-500.0,0.00036164,2]
[313746308,1707655864233,-1616.8,0.00036164,2]
[313746309,1707655864242,-500.0,0.00036164,2]
[313746310,1707655864252,-572.19,0.00036164,2]
[313746311,1707655864262,-500.0,0.00036164,2]
[313746312,1707655864271,-500.0,0.00036164,2]
[313746313,1707655864281,-533.66,0.00036164,2]
[313746314,1707655864291,-500.0,0.00036164,2]
[313746315,1707655864300,-500.0,0.00036164,2]
[313746316,1707655864309,-500.0,0.00036164,2]
[313746317,1707655864318,-799.17,0.00036164,2]
[313746318,1707655864328,-500.0,0.00036164,2]
[313746319,1707655864338,-513.91,0.00036164,2]
[313746320,1707655864349,-5353.75,0.00036164,2]
[313746321,1707655864359,-763.46,0.00036164,2]
[313746322,1707655864369,-500.0,0.00036164,2]
[313746323,1707655864379,-500.0,0.00036164,2]
[313746324,1707655864390,-500.0,0.00036164,2]
[313746325,1707655864399,-1239.22,0.00036164,2]
[313746326,1707655864407,-500.0,0.00036164,2]
[313746327,1707655864417,-500.0,0.00036164,2]
[313746328,1707655864426,-550.95,0.00036164,2]
[313746329,1707655864438,-150.0,0.00036164,2]
[313746330,1707655864449,-500.0,0.00036164,2]
[313746331,1707655864459,-500.0,0.00036164,2]
[313746332,1707655864469,-756.61,0.00036164,2]
[313746333,1707655864478,-500.0,0.00036164,2]
[313746334,1707655864488,-500.0,0.00036164,2]
[313746335,1707655864498,-500.0,0.00036164,2]
[313746336,1707655864508,-500.0,0.00036164,2]
[313746337,1707655864518,-734.46,0.00036164,2]
[313746338,1707655864527,-646.84,0.00036164,2]
[313746339,1707655864536,-500.0,0.00036164,2]
[313746340,1707655864545,-500.0,0.00036164,2]
[313746341,1707655864555,-500.0,0.00036164,2]
[313746342,1707655864564,-500.0,0.00036164,2]
[313746343,1707655864573,-796.38,0.00036164,2]
[313746344,1707655864582,-500.0,0.00036164,2]
[313746345,1707655864591,-1843.01,0.00036164,2]
[313746346,1707655864602,-1266.48,0.00036164,2]
[313746347,1707655864612,-500.0,0.00036164,2]
[313746348,1707655864622,-500.0,0.00036164,2]
[313746349,1707655864631,-818.94,0.00036164,2]
[313746350,1707655864640,-500.0,0.00036164,2]
[313746351,1707655864650,-500.0,0.00036164,2]
[313746352,1707655864660,-500.0,0.00036164,2]
[313746353,1707655864840,-784.21,0.00036164,2]
[313746354,1707655864850,-500.0,0.00036164,2]
[313746355,1707655864860,-500.0,0.00036164,2]
[313746356,1707655864869,-500.0,0.00036164,2]
[313746357,1707655864878,-602.23,0.00036164,2]
[313746358,1707655864888,-665.31,0.00036164,2]
[313746359,1707655864897,-3464.65,0.00036164,2]
[313746360,1707655864906,-500.0,0.00036164,2]
[313746361,1707655864916,-500.0,0.00036164,2]
[313746362,1707655864925,-500.0,0.00036164,2]
[313746363,1707655864935,-500.0,0.00036164,2]
[313746364,1707655864944,-500.0,0.00036164,2]
[313746365,1707655864953,-500.0,0.00036164,2]
[313746366,1707655864963,-10000.0,0.00036164,2]
[313746367,1707655864972,-500.0,0.00036164,2]
[313746368,1707655864981,-6797.18,0.00036164,2]
[313746369,1707655864990,-1383.58,0.00036164,2]
[313746370,1707655864999,-500.0,0.00036164,2]
[313746371,1707655865008,-1565.71,0.00036164,2]
[313746372,1707655865018,-500.0,0.00036164,2]
[313746373,1707655865028,-500.0,0.00036164,2]
[313746374,1707655865037,-500.0,0.00036164,2]
[313746375,1707655865047,-500.0,0.00036164,2]
[313746376,1707655865057,-500.0,0.00036164,2]
[313746377,1707655865067,-3979.74,0.00036164,2]
[313746378,1707655865077,-665.46,0.00036164,2]
[313746379,1707655865087,-1872.64,0.00036164,2]
[313746380,1707655865096,-500.0,0.00036164,2]
[313746381,1707655865106,-648.18,0.00036164,2]
[313746382,1707655865115,-667.71,0.00036164,2]
[313746383,1707655865125,-500.0,0.00036164,2]
[313746384,1707655865134,-10000.0,0.00036164,2]
[313746385,1707655865145,-5727.68,0.00036164,2]
[313746386,1707655865154,-2938.74,0.00036164,2]
[313746387,1707655865164,-500.0,0.00036164,2]
[313746388,1707655865173,-500.0,0.00036164,2]
[313746389,1707655865182,-1920.35,0.00036164,2]
[313746390,1707655865192,-500.0,0.00036164,2]
[313746391,1707655865201,-500.0,0.00036164,2]
[313746392,1707655865211,-500.0,0.00036164,2]
[313746393,1707655865221,-1732.31,0.00036164,2]
[313746394,1707655865230,-739.69,0.00036164,2]
[313746395,1707655865240,-2203.12,0.00036164,2]
[313746396,1707655865249,-500.0,0.00036164,2]
[313746397,1707655865259,-500.0,0.00036164,2]
[313746398,1707655865268,-656.12,0.00036164,2]
[313746399,1707655865278,-1414.44,0.00036164,2]
[313746400,1707655865287,-679.31,0.00036164,2]
[313746401,1707655865296,-500.0,0.00036164,2]
[313746402,1707655865305,-665.44,0.00036164,2]
[313746403,1707655865315,-500.0,0.00036164,2]
[313746404,1707655865326,-500.0,0.00036164,2]
[313746405,1707655865342,-1501.1,0.00036164,2]
[313746406,1707655865351,-500.0,0.00036164,2]
[313746407,1707655865361,-500.0,0.00036164,2]
[313746408,1707655865371,-500.0,0.00036164,2]
[313746409,1707655865381,-721.83,0.00036164,2]
[313746410,1707655865391,-500.0,0.00036164,2]
[313746411,1707655865401,-500.0,0.00036164,2]
[313746412,1707655865411,-1723.66,0.00036164,2]
[313746413,1707655865421,-500.0,0.00036164,2]
[313746414,1707655865431,-546.62,0.00036164,2]
[313746415,1707655865441,-1954.15,0.00036164,2]
[313746416,1707655865450,-601.06,0.00036164,2]
[313746417,1707655865460,-2677.04,0.00036164,2]
[313746418,1707655865469,-518.17,0.00036164,2]
[313746419,1707655865479,-534.97172616,0.00036164,2]
[313746420,1707655865487,-500.0,0.00036164,2]
[313746421,1707655865497,-500.0,0.00036164,2]
[313746422,1707655865507,-500.0,0.00036164,2]
[313746423,1707655865517,-500.0,0.00036164,2]
[313746424,1707655865527,-2867.3,0.00036164,2]
[313746425,1707655865537,-513.41,0.00036164,2]
[313746426,1707655865547,-500.0,0.00036164,2]
[313746427,1707655865557,-500.0,0.00036164,2]
[313746428,1707655865566,-4468.21,0.00036164,2]
[313746429,1707655865576,-723.25,0.00036164,2]
[313746430,1707655865586,-1144.28,0.00036164,2]
[313746431,1707655865595,-512.60369405,0.00036164,2]
[313746432,1707655865605,-788.55,0.00036164,2]
[313746433,1707655865615,-500.0,0.00036164,2]
[313746434,1707655865625,-500.0,0.00036164,2]
[313746435,1707655865634,-2001.83,0.00036164,2]
[313746436,1707655865644,-500.0,0.00036164,2]
[313746437,1707655865653,-500.0,0.00036164,2]
[313746438,1707655865662,-500.0,0.00036164,2]
[313746439,1707655865671,-500.0,0.00036164,2]
[313746440,1707655865681,-733.79,0.00036164,2]
[313746441,1707655865691,-500.0,0.00036164,2]
[313746442,1707655865700,-500.0,0.00036164,2]
[313746443,1707655865710,-500.0,0.00036164,2]
[313746444,1707655865719,-500.0,0.00036164,2]
[313746445,1707655865729,-500.0,0.00036164,2]
[313746446,1707655865740,-1907.33,0.00036164,2]
[313746447,1707655865750,-500.0,0.00036164,2]
[313746448,1707655865759,-644.52,0.00036164,2]
[313746449,1707655865769,-500.0,0.00036164,2]
[313746450,1707655865779,-1326.34,0.00036164,2]
[313746451,1707655865789,-500.0,0.00036164,2]
[313746452,1707655865799,-907.55,0.00036164,2]
[313746453,1707655865809,-500.0,0.00036164,2]
[313746454,1707655865819,-991.59,0.00036164,2]
[313746455,1707655865829,-500.0,0.00036164,2]
[313746456,1707655865839,-500.0,0.00036164,2]
[313746457,1707655865849,-500.0,0.00036164,2]
[313746458,1707655865859,-500.0,0.00036164,2]
[313746459,1707655865869,-1052.56,0.00036164,2]
[313746460,1707655865879,-500.0,0.00036164,2]
[313746461,1707655865888,-500.0,0.00036164,2]
[313746462,1707655865898,-500.0,0.00036164,2]
[313746463,1707655865907,-723.54,0.00036164,2]
[313746464,1707655865917,-525.53853855,0.00036164,2]
[313746465,1707655865926,-641.18,0.00036164,2]
[313746466,1707655865936,-8278.92,0.00036164,2]
[313746467,1707655865947,-2066.91,0.00036164,2]
[313746468,1707655865956,-522.92,0.00036164,2]
[313746469,1707655865966,-500.0,0.00036164,2]
[313746470,1707655865975,-614.62,0.00036164,2]
[313746471,1707655865985,-551.31,0.00036164,2]
[313746472,1707655865995,-736.55,0.00036164,2]
[313746473,1707655866004,-500.0,0.00036164,2]
[313746474,1707655866014,-925.72,0.00036164,2]
[313746475,1707655866023,-500.0,0.00036164,2]
[313746476,1707655866033,-1859.64,0.00036164,2]
[313746477,1707655866043,-540.28,0.00036164,2]
[313746478,1707655866053,-3223.09,0.00036164,2]
[313746479,1707655866063,-513.83,0.00036164,2]
[313746480,1707655866073,-2294.82,0.00036164,2]
[313746481,1707655866083,-663.56,0.00036164,2]
[313746482,1707655866093,-574.88003574,0.00036164,2]
[313746483,1707655866102,-500.0,0.00036164,2]
[313746484,1707655866113,-500.0,0.00036164,2]
[313746485,1707655866123,-500.0,0.00036164,2]
[313746486,1707655866133,-500.0,0.00036164,2]
[313746487,1707655866143,-500.0,0.00036164,2]
[313746488,1707655866153,-2876.92,0.00036164,2]
[313746489,1707655866162,-1868.25,0.00036164,2]
[313746490,1707655866172,-958.72,0.00036164,2]
[313746491,1707655866182,-1000.0,0.00036164,2]
[313746492,1707655866193,-592.78,0.00036164,2]
[313746493,1707655866203,-500.0,0.00036164,2]
[313746494,1707655866213,-1088.59,0.00036164,2]
[313746495,1707655866223,-500.0,0.00036164,2]
[313746496,1707655866233,-500.0,0.00036164,2]
[313746497,1707655866243,-667.31,0.00036164,2]
[313746498,1707655866253,-602.67,0.00036164,2]
[313746499,1707655866262,-592.04,0.00036164,2]
[313746500,1707655866272,-500.0,0.00036164,2]
[313746501,1707655866282,-500.0,0.00036164,2]
[313746502,1707655866292,-500.0,0.00036164,2]
[313746503,1707655866301,-500.0,0.00036164,2]
[313746504,1707655866311,-3452.52,0.00036164,2]
[313746505,1707655866321,-500.0,0.00036164,2]
[313746506,1707655866331,-500.0,0.00036164,2]
[313746507,1707655866344,-991.03,0.00036164,2]
[313746508,1707655866354,-2499.25,0.00036164,2]
[313746509,1707655866363,-680.48,0.00036164,2]
[313746510,1707655866373,-686.77,0.00036164,2]
[313746511,1707655866383,-1305.96,0.00036164,2]
[313746512,1707655866392,-500.0,0.00036164,2]
[313746513,1707655866402,-500.0,0.00036164,2]
[313746514,1707655866411,-474.05538654,0.00036164,2]
[313746515,1707655866420,-500.0,0.00036164,2]
[313746516,1707655866431,-500.0,0.00036164,2]
[313746517,1707655866442,-500.0,0.00036164,2]
[313746518,1707655866451,-1469.51,0.00036164,2]
[313746519,1707655866460,-500.0,0.00036164,2]
[313746520,1707655866470,-500.3,0.00036164,2]
[313746521,1707655866479,-2404.82,0.00036164,2]
[313746522,1707655866488,-500.0,0.00036164,2]
[313746523,1707655866498,-500.0,0.00036164,2]
[313746524,1707655866507,-829.21,0.00036164,2]
[313746525,1707655866517,-500.0,0.00036164,2]
[313746526,1707655866526,-2849.48,0.00036164,2]
[313746527,1707655866535,-3714.25,0.00036164,2]
[313746528,1707655866545,-500.0,0.00036164,2]
[313746529,1707655866554,-500.0,0.00036164,2]
[313746530,1707655866564,-500.0,0.00036164,2]
[313746531,1707655866573,-500.0,0.00036164,2]
[313746532,1707655866583,-500.0,0.00036164,2]
[313746533,1707655866593,-1101.23,0.00036164,2]
[313746534,1707655866602,-532.72,0.00036164,2]
[313746535,1707655866612,-500.0,0.00036164,2]
[313746536,1707655866621,-589.36,0.00036164,2]
[313746537,1707655866631,-500.0,0.00036164,2]
[313746538,1707655866640,-834.28,0.00036164,2]
[313746539,1707655866649,-500.0,0.00036164,2]
[313746540,1707655866659,-1225.05,0.00036164,2]
[313746541,1707655866668,-500.0,0.00036164,2]
[313746542,1707655866678,-500.0,0.00036164,2]
[313746543,1707655866688,-3291.86,0.00036164,2]
[313746544,1707655866699,-1405.4,0.00036164,2]
[313746545,1707655866709,-753.17,0.00036164,2]
[313746546,1707655866719,-500.0,0.00036164,2]
[313746547,1707655866728,-500.0,0.00036164,2]
[313746548,1707655866738,-500.0,0.00036164,2]
[313746549,1707655866748,-500.0,0.00036164,2]
[313746550,1707655866758,-500.0,0.00036164,2]
[313746551,1707655866769,-603.7,0.00036164,2]
[313746552,1707655866779,-537.20733216,0.00036164,2]
[313746553,1707655866789,-500.0,0.00036164,2]
[313746554,1707655866798,-2262.98,0.00036164,2]
[313746555,1707655866808,-565.73,0.00036164,2]
[313746556,1707655866818,-500.0,0.00036164,2]
[313746557,1707655866827,-500.0,0.00036164,2]
[313746558,1707655866837,-500.0,0.00036164,2]
[313746559,1707655866847,-5266.11,0.00036164,2]
[313746560,1707655866856,-500.0,0.00036164,2]
[313746561,1707655866865,-500.0,0.00036164,2]
[313746562,1707655866874,-377.42030836,0.00036164,2]
[313746563,1707655866885,-500.0,0.00036164,2]
[313746564,1707655866895,-527.88138496,0.00036164,2]
[313746565,1707655866904,-3328.22,0.00036164,2]
[313746566,1707655866915,-500.0,0.00036164,2]
[313746567,1707655866930,-500.0,0.00036164,2]
[313746568,1707655866939,-643.18,0.00036164,2]
[313746569,1707655866952,-656.9,0.00036164,2]
[313746570,1707655866964,-500.0,0.00036164,2]
[313746571,1707655866974,-1193.72,0.00036164,2]
[313746572,1707655866983,-517.16302147,0.00036164,2]
[313746573,1707655866993,-500.0,0.00036164,2]
[313746574,1707655867012,-1971.73,0.00036164,2]
[313746575,1707655867021,-500.0,0.00036164,2]
[313746576,1707655867031,-538.37,0.00036164,2]
[313746577,1707655867041,-858.74,0.00036164,2]
[313746578,1707655867053,-500.0,0.00036164,2]
[313746579,1707655867063,-500.0,0.00036164,2]
[313746580,1707655867073,-527.44147613,0.00036164,2]
[313746581,1707655867083,-737.17,0.00036164,2]
[313746582,1707655867093,-894.82,0.00036164,2]
[313746583,1707655867103,-512.63,0.00036164,2]
[313746584,1707655867112,-824.07,0.00036164,2]
[313746585,1707655867123,-638.32,0.00036164,2]
[313746586,1707655867140,-500.0,0.00036164,2]
[313746587,1707655867150,-1724.35,0.00036164,2]
[313746588,1707655867161,-763.37,0.00036164,2]
[313746589,1707655867185,-500.0,0.00036164,2]
[313746590,1707655867197,-2594.72,0.00036164,2]